bitfinex-derivatives/quotes_BTCF0:USTF0_20241208
["timestamp","ask_amount","ask_price","bid_price","bid_amount"]
[1733698841878,0.044911,100300.0,100290.0,0.45489749]
[1733698844284,0.044911,100300.0,100290.0,0.45589749]
[1733698844685,0.044911,100300.0,100290.0,0.45989749]
[1733698844875,0.044911,100300.0,100290.0,0.39697595]
[1733698845477,0.17075408,100300.0,100290.0,0.39597595]
[1733698845785,0.57465408,100300.0,100290.0,0.34123972]
[1733698846283,0.57465408,100300.0,100290.0,0.34223972]
[1733698846683,0.57465408,100300.0,100290.0,0.33823972]
[1733698847184,0.57465408,100300.0,100290.0,0.23755374]
[1733698848284,0.044836,100290.0,100280.0,4e-05]
[1733698848587,0.36587274,100290.0,100280.0,0.09974586]
[1733698848784,0.31740117,100290.0,100280.0,0.09974586]
[1733698848992,0.71010117,100290.0,100280.0,0.09974586]
[1733698849284,0.64717963,100290.0,100280.0,0.14458586]
[1733698849487,0.34930117,100290.0,100280.0,0.14558586]
[1733698849991,0.49848314,100290.0,100280.0,0.14958586]
[1733698850186,0.34930117,100290.0,100280.0,0.14958586]
[1733698850385,0.49845655,100290.0,100280.0,0.14958586]
[1733698851484,0.31939292,100290.0,100280.0,0.14958586]
[1733698851681,0.49845655,100290.0,100280.0,0.14958586]
[1733698852180,0.31939292,100290.0,100280.0,0.14958586]
[1733698852786,0.49845655,100290.0,100280.0,0.14958586]
[1733698853093,0.68019292,100290.0,100280.0,0.14958586]
[1733698853682,0.68019292,100290.0,100280.0,0.10474586]
[1733698853883,0.31939292,100290.0,100280.0,0.10474586]
[1733698854688,0.68019292,100290.0,100280.0,0.10474586]
[1733698854883,0.31939292,100290.0,100280.0,0.10474586]
[1733698855592,0.68019292,100290.0,100280.0,0.10474586]
[1733698857588,0.9519845,100290.0,100280.0,0.00504]
[1733698857790,0.80282912,100290.0,100280.0,0.00504]
[1733698859388,1.10282912,100290.0,100280.0,0.00504]
[1733698859588,1.10274264,100290.0,100280.0,0.00504]
[1733698859995,0.92395908,100290.0,100280.0,0.00504]
[1733698860797,0.93385834,100290.0,100280.0,0.00504]
[1733698862696,0.93385834,100290.0,100270.0,0.00012194]
[1733698862697,0.04484,100280.0,100270.0,0.00012194]
[1733698862904,0.62440462,100280.0,100270.0,0.00012194]
[1733698863094,0.73572,100280.0,100270.0,0.00012194]
[1733698863286,0.92448462,100280.0,100270.0,0.00012194]
[1733698863497,0.044849,100260.0,100250.0,0.005]
[1733698863795,0.57634508,100260.0,100250.0,0.09972575]
[1733698863997,0.57642508,100260.0,100250.0,0.09972575]
[1733698864189,0.53157208,100260.0,100250.0,0.09972575]
[1733698864394,0.53157208,100260.0,100250.0,0.09984922]
[1733698864895,0.90237208,100260.0,100250.0,0.00012347]
[1733698865084,0.90237208,100260.0,100250.0,0.00312347]
[1733698865903,1.05122756,100260.0,100250.0,0.00312347]
[1733698866485,1.05222756,100260.0,100250.0,0.01212347]
[1733698866691,1.08502756,100260.0,100250.0,0.01212347]
[1733698866900,0.95918448,100260.0,100250.0,0.01212347]
[1733698867199,1.08502756,100260.0,100250.0,0.01212347]
[1733698870998,0.95918448,100260.0,100250.0,0.11186911]
[1733698871196,1.08502756,100260.0,100250.0,0.11186911]
[1733698872600,1.09513413,100260.0,100250.0,0.11186911]
[1733698874097,1.09513413,100260.0,100250.0,0.01212347]
[1733698875905,1.27365875,100260.0,100250.0,0.00912347]
[1733698876609,1.27265875,100260.0,100250.0,0.00112347]
[1733698876904,1.09413413,100260.0,100250.0,0.00112347]
[1733698877794,1.27265875,100260.0,100250.0,0.00112347]
[1733698879105,1.09413413,100260.0,100250.0,0.00112347]
[1733698883006,1.42941413,100260.0,100250.0,0.00112347]
[1733698883898,1.60793875,100260.0,100250.0,0.00112347]
[1733698885401,1.67086029,100260.0,100250.0,0.00112347]
[1733698885706,1.67086029,100260.0,100230.0,0.0689]
[1733698885707,0.044858,100240.0,100230.0,0.0689]
[1733698885911,0.61585863,100240.0,100220.0,0.0331]
[1733698886207,0.26019887,100230.0,100220.0,0.13284564]
[1733698886411,0.19727733,100230.0,100220.0,0.13284564]
[1733698886604,0.5582033,100230.0,100220.0,0.13297473]
[1733698887209,0.5582033,100230.0,100220.0,0.14197473]
[1733698888409,0.5582033,100230.0,100220.0,0.14697473]
[1733698889011,0.49528176,100230.0,100220.0,0.14697473]
[1733698889205,0.46879051,100230.0,100220.0,0.14697473]
[1733698889907,0.46879051,100230.0,100220.0,0.11387473]
[1733698890115,0.54171205,100230.0,100220.0,0.01412909]
[1733698890613,0.60411205,100230.0,100220.0,0.01412909]
[1733698890812,0.60411205,100230.0,100220.0,0.01012909]
[1733698891311,0.90411205,100230.0,100220.0,0.00612909]
[1733698896117,0.91395162,100230.0,100220.0,0.00612909]
[1733698896612,1.09270753,100230.0,100220.0,0.00612909]
[1733698897910,0.96686445,100230.0,100220.0,0.00612909]
[1733698898111,0.79270753,100230.0,100220.0,0.00612909]
[1733698898713,0.78567832,100230.0,100220.0,0.00612909]
[1733698898916,0.66984395,100230.0,100220.0,0.00612909]
[1733698899122,0.78896757,100230.0,100220.0,0.00612909]
[1733698899616,0.6400537,100230.0,100220.0,0.00612909]
[1733698900014,0.72939111,100230.0,100220.0,0.00612909]
[1733698900825,0.69709111,100230.0,100220.0,0.00612909]
[1733698901029,0.69709111,100230.0,100220.0,0.03932909]
[1733698901717,0.75666757,100230.0,100220.0,0.03932909]
[1733698902121,0.88458911,100230.0,100220.0,0.00612909]
[1733698902723,0.76546549,100230.0,100220.0,0.00612909]
[1733698902923,0.9442214,100230.0,100220.0,0.00612909]
[1733698903327,0.76546549,100230.0,100220.0,0.00612909]
[1733698906233,0.61655162,100230.0,100220.0,0.00612909]
[1733698906440,0.76552741,100230.0,100220.0,0.00612909]
[1733698907034,0.61655162,100230.0,100220.0,0.00612909]
[1733698907235,0.79532093,100230.0,100220.0,0.00612909]
[1733698909437,0.73239939,100230.0,100220.0,0.00612909]
[1733698909641,0.69999939,100230.0,100220.0,0.00612909]
[1733698909830,0.84902547,100230.0,100220.0,0.00612909]
[1733698911443,0.60447785,100230.0,100220.0,0.00612909]
[1733698911647,0.66739939,100230.0,100220.0,0.18407159]
[1733698913345,0.66739939,100230.0,100220.0,0.13920459]
[1733698913848,0.48863008,100230.0,100220.0,0.13920459]
[1733698914542,0.55155162,100230.0,100220.0,0.00612909]
[1733698914850,0.58345162,100230.0,100220.0,0.00612909]
[1733698915052,0.61375162,100230.0,100220.0,0.00612909]
[1733698915350,0.67917192,100230.0,100220.0,0.00612909]
[1733698915849,0.88823097,100230.0,100220.0,0.00612909]
[1733698918551,1.22363097,100230.0,100220.0,0.00612909]
[1733698918747,1.22363097,100230.0,100220.0,0.00112909]
[1733698919149,1.01457192,100230.0,100220.0,0.00112909]
[1733698919446,1.32457192,100230.0,100220.0,9e-08]
[1733698920951,1.65249676,100230.0,100220.0,9e-08]
[1733698921445,1.95141593,100230.0,100220.0,9e-08]
[1733698921650,0.054868,100220.0,100200.0,0.10007519]
[1733698921849,1.16489496,100210.0,100200.0,0.10007519]
[1733698922043,1.26486137,100210.0,100200.0,0.10007519]
[1733698923056,1.26486137,100210.0,100200.0,0.10507519]
[1733698923450,1.26486137,100210.0,100200.0,0.10807519]
[1733698923650,1.56341472,100210.0,100200.0,0.10807519]
[1733698923846,1.26486137,100210.0,100200.0,0.10807519]
[1733698924045,1.66049306,100210.0,100200.0,0.10807519]
[1733698924346,1.69006873,100210.0,100200.0,0.10807519]
[1733698924547,1.9587608,100210.0,100200.0,0.10807519]
[1733698924749,1.9587608,100210.0,100170.0,0.10236]
[1733698924950,0.82957541,100180.0,100170.0,0.06736]
[1733698925142,0.82965541,100180.0,100170.0,0.16715541]
[1733698925740,0.82965541,100180.0,100170.0,0.06748914]
[1733698925942,0.82965541,100180.0,100170.0,0.07248914]
[1733698926156,0.83065541,100180.0,100170.0,0.08148914]
[1733698926349,0.84065541,100180.0,100170.0,0.08148914]
[1733698926544,0.84065541,100180.0,100170.0,0.07248914]
[1733698926847,0.84065541,100180.0,100170.0,0.07948914]
[1733698927051,0.6914469,100180.0,100170.0,0.07948914]
[1733698927248,0.6914469,100180.0,100170.0,0.01338914]
[1733698927650,0.84043941,100180.0,100170.0,0.01338914]
[1733698928048,0.84017993,100180.0,100170.0,0.01338914]
[1733698928448,0.6613892,100180.0,100170.0,0.01338914]
[1733698930460,0.6919892,100180.0,100170.0,0.01338914]
[1733698931059,0.54299669,100180.0,100170.0,0.01338914]
[1733698931561,0.55295628,100180.0,100170.0,0.01338914]
[1733698935259,0.52235628,100180.0,100170.0,0.01338914]
[1733698936064,0.52235628,100180.0,100170.0,0.04658914]
[1733698937661,0.16155628,100180.0,100170.0,0.19130344]
[1733698937851,0.16155628,100180.0,100170.0,0.55210344]
[1733698938052,0.16155628,100180.0,100170.0,0.19130344]
[1733698938855,0.16155628,100180.0,100170.0,0.55210344]
[1733698939355,0.16155628,100180.0,100170.0,0.19130344]
[1733698940259,0.16155628,100180.0,100170.0,0.55210344]
[1733698940649,0.16155628,100180.0,100170.0,0.55084344]
[1733698941149,0.05592459,100180.0,100170.0,0.55084344]
[1733698941356,0.00108,100180.0,100170.0,0.55084344]
[1733698942163,0.00108,100180.0,100170.0,0.19004344]
[1733698942862,0.00108,100180.0,100170.0,0.55084344]
[1733698943055,0.00108,100180.0,100170.0,0.85084344]
[1733698943250,0.00108,100180.0,100170.0,0.49004344]
[1733698943456,0.00108,100180.0,100170.0,0.85084344]
[1733698943656,0.00108,100180.0,100170.0,0.49004344]
[1733698943860,0.00108,100180.0,100170.0,0.85084344]
[1733698945165,0.09035353,100180.0,100170.0,0.85084344]
[1733698946658,0.09035353,100180.0,100170.0,0.94647513]
[1733698947358,0.09035353,100180.0,100170.0,1.1248407]
[1733698948267,0.09035353,100180.0,100170.0,1.36329218]
[1733698950267,0.29837359,100190.0,100170.0,1.82581438]
[1733698950268,0.18943159,100190.0,100170.0,1.82581438]
[1733698950477,0.16943159,100190.0,100180.0,0.61582554]
[1733698950659,0.15943159,100190.0,100180.0,0.61586554]
[1733698950967,0.15943159,100190.0,100180.0,0.91586554]
[1733698951163,0.04035353,100190.0,100180.0,1.11131257]
[1733698951466,0.04035353,100190.0,100180.0,1.34976405]
[1733698951670,0.04035353,100190.0,100180.0,1.11131257]
[1733698951861,0.14907806,100200.0,100180.0,1.34976405]
[1733698952063,0.12907806,100200.0,100190.0,0.61672054]
[1733698952363,0.11907806,100200.0,100190.0,0.61676054]
[1733698952566,0.11907806,100200.0,100190.0,0.43802]
[1733698952866,0.11907806,100200.0,100190.0,0.53783534]
[1733698953062,0.12007806,100200.0,100190.0,0.53783534]
[1733698953459,0.12007806,100200.0,100190.0,0.56803534]
[1733698953460,0.11907806,100200.0,100190.0,0.56803534]
[1733698953668,0.11907806,100200.0,100190.0,0.57303534]
[1733698954565,0.35321365,100210.0,100190.0,0.57303534]
[1733698954863,0.33321365,100210.0,100200.0,0.405716]
[1733698955056,0.32321365,100210.0,100200.0,0.405716]
[1733698955574,0.32321365,100210.0,100200.0,0.50551639]
[1733698956359,0.32321365,100210.0,100200.0,0.14471639]
[1733698956674,0.32321365,100210.0,100200.0,0.50551639]
[1733698956971,0.32421365,100210.0,100200.0,0.50551639]
[1733698957664,0.32421365,100210.0,100200.0,0.14471639]
[1733698958258,0.32421365,100210.0,100200.0,0.50551639]
[1733698958965,0.17491812,100210.0,100200.0,0.50551639]
[1733698962365,0.20761812,100210.0,100200.0,0.50551639]
[1733698962563,0.08854006,100210.0,100200.0,0.50551639]
[1733698963272,0.15129713,100210.0,100200.0,0.50551639]
[1733698963870,0.08854006,100210.0,100200.0,0.50551639]
[1733698966570,0.08854006,100210.0,100200.0,0.14471639]
[1733698966775,0.08854006,100210.0,100200.0,0.50551639]
[1733698966977,0.08854006,100210.0,100200.0,0.14471639]
[1733698967170,0.08854006,100210.0,100200.0,0.50551639]
[1733698967862,0.08854006,100210.0,100200.0,0.14471639]
[1733698968061,0.08854006,100210.0,100200.0,0.50551639]
[1733698968561,0.08854006,100210.0,100200.0,0.14471639]
[1733698968769,0.08854006,100210.0,100200.0,0.50551639]
[1733698969165,0.08854006,100210.0,100200.0,0.14471639]
[1733698969367,0.08854006,100210.0,100200.0,0.50551639]
[1733698969971,0.08854006,100210.0,100200.0,0.14471639]
[1733698977184,0.13705083,100210.0,100200.0,0.14471639]
[1733698977484,0.13705083,100210.0,100200.0,0.32345693]
[1733698977784,0.31649861,100210.0,100200.0,0.32345693]
[1733698977984,0.26798805,100210.0,100200.0,0.32345693]
[1733698979575,0.47700179,100210.0,100200.0,0.32345693]
[1733698981078,0.2975538,100210.0,100200.0,0.32345693]
[1733698984592,0.08854006,100210.0,100200.0,0.32345693]
[1733698985088,0.23885519,100210.0,100200.0,0.32345693]
[1733698985281,0.08854006,100210.0,100200.0,0.32345693]
[1733698986286,0.19032352,100210.0,100200.0,0.32345693]
[1733698987781,0.08854006,100210.0,100200.0,0.32345693]
[1733698987979,0.19042478,100210.0,100200.0,0.32345693]
[1733698988586,0.15772478,100210.0,100200.0,0.386214]
[1733698988773,0.15772478,100210.0,100200.0,0.35455693]
[1733698989177,0.36758467,100210.0,100200.0,0.35455693]
[1733698989385,0.26539915,100210.0,100200.0,0.35455693]
[1733698992499,0.05584006,100210.0,100200.0,0.35455693]
[1733698995596,0.05584006,100210.0,100200.0,0.30968093]
[1733698995797,0.37978237,100210.0,100200.0,0.30968093]
[1733698995995,0.06584006,100210.0,100200.0,0.30968093]
[1733698996203,0.12859713,100210.0,100200.0,0.30968093]
[1733698996502,0.48939713,100210.0,100200.0,0.17878054]
[1733698996806,0.55169713,100210.0,100200.0,0.17878054]
[1733699000605,0.55169713,100210.0,100200.0,4e-05]
[1733699006105,0.45764006,100210.0,100200.0,4e-05]
[1733699008911,0.66719915,100210.0,100200.0,4e-05]
[1733699009208,0.45764006,100210.0,100200.0,4e-05]
[1733699009609,0.66719915,100210.0,100200.0,4e-05]
[1733699009810,0.45764006,100210.0,100200.0,4e-05]
[1733699011410,0.42664006,100210.0,100200.0,4e-05]
[1733699011708,0.63608914,100210.0,100200.0,4e-05]
[1733699012412,0.87482276,100210.0,100200.0,4e-05]
[1733699013409,0.72813075,100210.0,100200.0,4e-05]
[1733699013715,0.93757881,100210.0,100200.0,4e-05]
[1733699015615,0.87482174,100210.0,100200.0,4e-05]
[1733699016316,0.66937368,100210.0,100190.0,0.06275707]
[1733699016510,0.30283544,100200.0,100190.0,0.06275707]
[1733699016710,0.25432074,100200.0,100190.0,0.16255248]
[1733699017217,0.28572074,100200.0,100190.0,0.16255248]
[1733699017416,0.28572074,100200.0,100190.0,0.52335248]
[1733699017911,0.28672074,100200.0,100190.0,0.52335248]
[1733699018713,0.29672074,100200.0,100190.0,0.52335248]
[1733699018917,0.29672074,100200.0,100190.0,0.16255248]
[1733699019313,0.3153076,100200.0,100190.0,0.34186984]
[1733699019618,0.26679267,100200.0,100190.0,0.34186984]
[1733699020011,0.26679267,100200.0,100190.0,0.27911277]
[1733699020213,0.26679267,100200.0,100190.0,0.34186984]
[1733699020714,0.26679267,100200.0,100190.0,0.38674984]
[1733699023025,0.087276,100200.0,100190.0,0.38674984]
[1733699023222,0.31532424,100200.0,100190.0,0.38674984]
[1733699023425,0.2668099,100200.0,100190.0,0.38674984]
[1733699023610,0.26681573,100200.0,100190.0,0.38674984]
[1733699025310,0.087276,100200.0,100190.0,0.27911277]
[1733699025522,0.087276,100200.0,100190.0,0.34186984]
[1733699026413,0.087276,100200.0,100190.0,0.27911277]
[1733699026722,0.087276,100200.0,100190.0,0.34186984]
[1733699028023,0.087276,100200.0,100190.0,0.27911277]
[1733699028315,0.087276,100200.0,100190.0,0.17931736]
[1733699028918,0.34523762,100200.0,100190.0,0.17931736]
[1733699029120,0.29672074,100200.0,100190.0,0.17931736]
[1733699029317,0.119176,100200.0,100190.0,0.17931736]
[1733699029824,0.34726119,100200.0,100190.0,0.41776884]
[1733699030030,0.29874799,100200.0,100190.0,0.41776884]
[1733699030724,0.29874799,100200.0,100190.0,0.17931736]
[1733699030913,0.119176,100200.0,100190.0,0.17931736]
[1733699031113,0.0743,100200.0,100190.0,0.17931736]
[1733699033621,0.30240253,100200.0,100190.0,0.17931736]
[1733699033828,0.25388768,100200.0,100190.0,0.17931736]
[1733699034324,0.0743,100200.0,100190.0,0.17931736]
[1733699034525,0.011,100200.0,100190.0,0.17931736]
[1733699034727,0.54582899,100200.0,100190.0,0.17931736]
[1733699034913,0.57509214,100200.0,100180.0,0.29881605]
[1733699035118,0.57509214,100200.0,100180.0,0.47813341]
[1733699035119,0.53557726,100190.0,100180.0,0.47813341]
[1733699035321,0.53557726,100190.0,100180.0,0.39862142]
[1733699035719,0.54557726,100190.0,100180.0,0.39862142]
[1733699036033,0.54557726,100190.0,100180.0,0.40362142]
[1733699036623,0.54557726,100190.0,100180.0,0.44850642]
[1733699036828,0.22797702,100190.0,100180.0,0.93482056]
[1733699037121,0.22797256,100190.0,100180.0,1.02892056]
[1733699037326,0.3775095,100190.0,100180.0,1.1418579]
[1733699037525,0.3775095,100190.0,100180.0,1.02892056]
[1733699037726,0.31766849,100190.0,100180.0,1.60900201]
[1733699038026,0.31766849,100190.0,100180.0,1.60880181]
[1733699039231,0.31766849,100190.0,100180.0,1.26717184]
[1733699040737,0.11961136,100190.0,100180.0,1.32872036]
[1733699041422,0.11961136,100190.0,100180.0,1.03861453]
[1733699041731,0.11961136,100190.0,100180.0,1.02872036]
[1733699041923,0.20945237,100200.0,100190.0,0.04488]
[1733699042123,0.17945237,100200.0,100190.0,0.46843707]
[1733699042526,0.17945237,100200.0,100190.0,0.56824244]
[1733699043230,0.17945237,100200.0,100190.0,0.63099951]
[1733699043423,0.18045237,100200.0,100190.0,0.63099951]
[1733699043623,0.12057295,100200.0,100190.0,1.51166965]
[1733699043824,0.12057295,100200.0,100190.0,1.21012798]
[1733699044329,0.12157295,100200.0,100190.0,1.21012798]
[1733699045632,0.12057295,100200.0,100190.0,1.21112798]
[1733699045831,0.11957295,100200.0,100190.0,1.27388505]
[1733699046032,0.11957295,100200.0,100190.0,1.21412798]
[1733699046326,0.11957295,100200.0,100190.0,1.27688505]
[1733699046538,0.21425267,100220.0,100200.0,0.044876]
[1733699046720,0.20925267,100220.0,100210.0,0.90861414]
[1733699046926,0.20925267,100220.0,100210.0,0.90870513]
[1733699047125,0.20925267,100220.0,100210.0,1.3533825]
[1733699047321,6.7e-07,100220.0,100210.0,1.3533825]
[1733699047630,0.53870386,100230.0,100220.0,0.044867]
[1733699047834,0.23927552,100230.0,100220.0,0.59903821]
[1733699048029,0.59836311,100240.0,100230.0,0.044863]
[1733699048226,0.59836311,100240.0,100230.0,0.83117714]
[1733699048227,0.57028364,100240.0,100230.0,0.83117714]
[1733699048426,0.26903915,100240.0,100230.0,0.83117714]
[1733699048625,0.26903915,100240.0,100230.0,0.70276897]
[1733699048827,0.03557752,100260.0,100250.0,0.044854]
[1733699049029,0.03057752,100260.0,100250.0,0.53116814]
[1733699049235,7.752e-05,100260.0,100250.0,0.86192852]
[1733699049539,7.752e-05,100260.0,100250.0,0.86619964]
[1733699049738,7.752e-05,100260.0,100250.0,0.50539964]
[1733699050038,7.752e-05,100260.0,100250.0,0.60087416]
[1733699051125,0.04492652,100260.0,100250.0,0.50839964]
[1733699051328,0.04492652,100260.0,100250.0,0.51139964]
[1733699051836,7.752e-05,100260.0,100250.0,0.60387416]
[1733699052031,7.752e-05,100260.0,100250.0,0.61487416]
[1733699052728,7.752e-05,100260.0,100250.0,0.61387416]
[1733699054933,7.752e-05,100260.0,100250.0,0.61487416]
[1733699056535,7.752e-05,100260.0,100250.0,0.97567416]
[1733699056835,7.752e-05,100260.0,100250.0,0.98567416]
[1733699057039,0.03147752,100260.0,100250.0,0.98567416]
[1733699059246,7.752e-05,100260.0,100250.0,0.98567416]
[1733699059943,7.752e-05,100260.0,100250.0,1.28267416]
[1733699060244,7.752e-05,100260.0,100250.0,1.28567416]
[1733699060845,7.752e-05,100260.0,100250.0,1.29577355]
[1733699061148,7.752e-05,100260.0,100250.0,1.30177355]
[1733699062548,7.752e-05,100260.0,100250.0,1.00177355]
[1733699062738,7.752e-05,100260.0,100250.0,1.01177355]
[1733699063544,7.752e-05,100260.0,100250.0,1.31177355]
[1733699063749,7.752e-05,100260.0,100250.0,1.01177355]
[1733699064050,7.752e-05,100260.0,100250.0,1.00277355]
[1733699064243,7.752e-05,100260.0,100250.0,1.00577355]
[1733699064648,7.752e-05,100260.0,100250.0,1.00277355]
[1733699064844,7.752e-05,100260.0,100250.0,1.01177355]
[1733699066245,7.752e-05,100260.0,100250.0,1.00477355]
[1733699066449,7.752e-05,100260.0,100250.0,1.01177355]
[1733699066745,7.752e-05,100260.0,100250.0,1.01187935]
[1733699066949,0.112142,100280.0,100250.0,1.01187935]
[1733699066950,0.0673,100280.0,100270.0,0.044845]
[1733699067150,0.0623,100280.0,100270.0,0.53111952]
[1733699067650,0.0623,100280.0,100270.0,0.63084527]
[1733699068039,0.0623,100280.0,100270.0,0.63184527]
[1733699068557,0.0623,100280.0,100270.0,1.17039433]
[1733699069251,0.0623,100280.0,100270.0,1.20020395]
[1733699069449,0.0623,100280.0,100270.0,1.07791981]
[1733699069648,0.0623,100280.0,100270.0,1.13956188]
[1733699069847,0.0623,100280.0,100270.0,1.14056188]
[1733699070051,0.0623,100280.0,100270.0,1.14456188]
[1733699070346,0.0623,100280.0,100270.0,0.78376188]
[1733699070553,0.0623,100280.0,100270.0,0.78576188]
[1733699071157,0.0623,100280.0,100270.0,0.78176188]
[1733699071349,0.0623,100280.0,100270.0,1.01839591]
[1733699071555,0.0623,100280.0,100270.0,0.78176188]
[1733699072047,0.0623,100280.0,100270.0,1.14256188]
[1733699072455,0.0623,100280.0,100270.0,0.97257561]
[1733699072650,0.0623,100280.0,100270.0,0.90017075]
[1733699072860,0.10714,100280.0,100270.0,0.24121282]
[1733699073047,0.10714,100280.0,100270.0,0.41896989]
[1733699073350,0.10714,100280.0,100270.0,0.36896989]
[1733699073546,0.10714,100280.0,100270.0,0.41381489]
[1733699074349,0.60322414,100280.0,100270.0,0.15662782]
[1733699074553,0.60322414,100280.0,100260.0,0.64290727]
[1733699074747,0.10748707,100270.0,100260.0,0.044847]
[1733699074947,0.10748707,100270.0,100260.0,0.14457275]
[1733699075148,0.044845,100270.0,100260.0,0.14457275]
[1733699075344,0.044845,100270.0,100260.0,0.38183302]
[1733699075752,0.51116544,100270.0,100260.0,0.23726027]
[1733699075952,0.044849,100260.0,100250.0,0.23736607]
[1733699076152,0.50116944,100260.0,100250.0,0.23736607]
[1733699076940,0.50116944,100260.0,100250.0,0.0001058]
[1733699077150,0.044854,100250.0,100240.0,0.53417839]
[1733699077359,0.044854,100250.0,100240.0,0.60895576]
[1733699077360,0.50117444,100250.0,100240.0,0.60895576]
[1733699077549,0.56467444,100250.0,100240.0,0.7087014]
[1733699078160,0.56467444,100250.0,100240.0,0.70879589]
[1733699078647,0.56467444,100250.0,100240.0,0.60905025]
[1733699079056,0.469154,100250.0,100240.0,0.60905025]
[1733699079355,0.56467444,100250.0,100240.0,0.37178998]
[1733699079558,0.56767444,100250.0,100240.0,0.37178998]
[1733699080456,0.59977444,100250.0,100240.0,0.37178998]
[1733699080955,0.90977444,100250.0,100240.0,0.32188998]
[1733699081156,0.90977444,100250.0,100240.0,0.27678998]
[1733699082453,0.90977444,100250.0,100240.0,9.449e-05]
[1733699085054,0.044863,100230.0,100220.0,0.0331]
[1733699085359,0.50118344,100230.0,100220.0,0.0331]
[1733699086264,0.50118344,100230.0,100220.0,0.03419067]
[1733699086465,0.50118344,100230.0,100220.0,0.03719067]
[1733699090266,0.51115457,100230.0,100220.0,0.03719067]
[1733699090662,0.52128398,100230.0,100220.0,0.00409067]
[1733699090865,0.95212442,100230.0,100220.0,0.00409067]
[1733699091062,1.25212442,100230.0,100220.0,0.00409067]
[1733699091261,1.25222442,100230.0,100220.0,0.00409067]
[1733699092262,1.25222442,100230.0,100200.0,0.0411]
[1733699092263,0.044872,100210.0,100200.0,0.0411]
[1733699092568,0.50119244,100210.0,100200.0,0.0311]
[1733699092760,0.14039244,100210.0,100200.0,0.0311]
[1733699093162,0.50119244,100210.0,100200.0,0.0311]
[1733699093360,0.50119244,100210.0,100200.0,0.03114744]
[1733699093561,0.50119244,100210.0,100200.0,0.04014744]
[1733699093769,0.50119244,100210.0,100200.0,0.04414744]
[1733699095356,0.51119244,100210.0,100200.0,0.04414744]
[1733699096271,0.51319244,100210.0,100200.0,0.04014744]
[1733699096665,0.51919244,100210.0,100200.0,0.03114744]
[1733699097369,0.91471288,100210.0,100200.0,4.4e-07]
[1733699097574,0.723772,100210.0,100200.0,4.4e-07]
[1733699097875,0.81919244,100210.0,100200.0,4.4e-07]
[1733699098959,0.91471288,100210.0,100200.0,4.4e-07]
[1733699099363,0.81919244,100210.0,100200.0,4.4e-07]
[1733699101164,0.82896614,100210.0,100200.0,4.4e-07]
[1733699101574,0.92448658,100210.0,100200.0,4.4e-07]
[1733699101872,0.82896614,100210.0,100200.0,4.4e-07]
[1733699102076,0.4334457,100210.0,100200.0,4.4e-07]
[1733699102279,0.52896614,100210.0,100200.0,4.4e-07]
[1733699102665,0.82896614,100210.0,100200.0,4.4e-07]
[1733699102867,0.549067,100210.0,100200.0,4.4e-07]
[1733699103068,0.849067,100210.0,100200.0,4.4e-07]
[1733699103263,0.549067,100210.0,100200.0,4.4e-07]
[1733699103468,0.94458744,100210.0,100200.0,4.4e-07]
[1733699103672,0.849067,100210.0,100200.0,4.4e-07]
[1733699103866,0.94458744,100210.0,100200.0,4.4e-07]
[1733699105674,0.849067,100210.0,100200.0,4.4e-07]
[1733699106674,0.549067,100210.0,100200.0,4.4e-07]
[1733699107176,0.549067,100210.0,100200.0,0.03050044]
[1733699107374,0.94458744,100210.0,100200.0,0.03050044]
[1733699107570,0.549067,100210.0,100200.0,0.03050044]
[1733699112777,0.909867,100210.0,100200.0,0.03050044]
[1733699116778,0.7942457,100210.0,100200.0,0.03050044]
[1733699116986,0.7942457,100210.0,100200.0,0.89957548]
[1733699116987,0.052872,100210.0,100200.0,0.89957548]
[1733699117177,0.052872,100210.0,100200.0,0.44325504]
[1733699117178,0.002872,100210.0,100200.0,0.44325504]
[1733699117681,0.044872,100210.0,100200.0,0.44325504]
[1733699118274,0.046872,100210.0,100200.0,0.44325504]
[1733699122386,0.002,100210.0,100200.0,0.89957548]
[1733699122581,0.002,100210.0,100200.0,0.66239229]
[1733699122991,0.001,100210.0,100200.0,0.96239229]
[1733699123183,0.074868,100220.0,100210.0,0.044872]
[1733699123486,0.044868,100220.0,100210.0,0.53399244]
[1733699123888,0.044868,100220.0,100210.0,0.6337779]
[1733699124593,0.044868,100220.0,100210.0,1.17063062]
[1733699125496,0.044868,100220.0,100210.0,1.17363062]
[1733699126180,0.36560941,100230.0,100220.0,0.09552044]
[1733699126384,0.33560941,100230.0,100220.0,0.56728744]
[1733699126585,0.04499241,100230.0,100220.0,0.56728744]
[1733699126897,0.40579241,100230.0,100220.0,0.1658755]
[1733699127091,0.51131285,100230.0,100220.0,0.0333]
[1733699127386,0.41579241,100230.0,100220.0,0.0333]
[1733699130188,0.40579241,100230.0,100220.0,0.0333]
[1733699130492,0.1641213,100230.0,100220.0,0.5387425]
[1733699130691,0.1641213,100230.0,100220.0,0.5716425]
[1733699130993,0.04499241,100230.0,100220.0,0.5716425]
[1733699131593,0.04499241,100230.0,100220.0,0.66716294]
[1733699131594,0.00012941,100230.0,100220.0,0.66716294]
[1733699132290,0.00012941,100230.0,100220.0,0.96716294]
[1733699132694,0.00012941,100230.0,100220.0,0.66716294]
[1733699133989,0.00012941,100230.0,100220.0,0.66816294]
[1733699134594,0.00012941,100230.0,100220.0,0.67116294]
[1733699135699,0.04499241,100230.0,100220.0,0.5756425]
[1733699135892,0.04499241,100230.0,100220.0,0.67116294]
[1733699139494,0.00012941,100230.0,100220.0,0.67116294]
[1733699143197,0.00012941,100230.0,100220.0,0.30936294]
[1733699143792,0.00012941,100230.0,100220.0,0.67016294]
[1733699143793,0.04499241,100230.0,100220.0,0.67016294]
[1733699143999,0.04499241,100230.0,100220.0,0.1476425]
[1733699144194,0.04499241,100230.0,100220.0,0.1446425]
[1733699144403,0.40579241,100230.0,100220.0,0.1446425]
[1733699144602,0.49909241,100230.0,100220.0,0.1446425]
[1733699146006,0.044872,100210.0,100200.0,0.23815943]
[1733699146302,0.044872,100210.0,100200.0,0.14464994]
[1733699146501,0.044872,100210.0,100200.0,0.24017038]
[1733699146701,0.41019,100220.0,100210.0,0.044872]
[1733699146899,0.38019,100220.0,100210.0,0.044872]
[1733699147302,0.38019,100220.0,100210.0,0.24018785]
[1733699148107,0.38019,100220.0,100210.0,0.14466741]
[1733699148405,0.38019,100220.0,100210.0,0.14766741]
[1733699148903,0.38019,100220.0,100210.0,0.14566741]
[1733699149803,0.38019,100220.0,100210.0,0.14466741]
[1733699151202,0.5293825,100220.0,100210.0,0.14466741]
[1733699152506,0.5293825,100220.0,100210.0,0.60098785]
[1733699152919,0.49955365,100220.0,100210.0,0.60098785]
[1733699153602,0.49955365,100220.0,100210.0,0.50546741]
[1733699153805,0.38019,100220.0,100210.0,0.50546741]
[1733699154912,0.5293825,100220.0,100210.0,0.50546741]
[1733699156317,0.5293825,100220.0,100210.0,0.14466741]
[1733699157204,0.63490294,100220.0,100210.0,0.09979541]
[1733699157413,0.044872,100210.0,100200.0,0.40567444]
[1733699157708,0.044872,100210.0,100200.0,0.5054599]